[Event "Late-Titled-Tuesday-Blitz-May-14-2024"]
[Site "Chess.com"]
[Date "2024.05.14"]
[Round "1"]
[White "merinasian"]
[Black "Hrant_ChessMood"]
[Result "0-1"]
[WhiteElo "2524"]
[BlackElo "2949"]
[TimeControl "180+1"]
[EndTime "14:08:16 PDT"]
[Termination "Hrant_ChessMood won by checkmate"]

1. d4 {[%clk 0:03:00.1]} 1... Nf6 {[%clk 0:02:57.1]} 2. Nf3 {[%clk 0:02:59]}
2... g6 {[%clk 0:02:56.7]} 3. Bf4 {[%clk 0:02:58]} 3... Bg7 {[%clk 0:02:56.4]}
4. e3 {[%clk 0:02:58.3]} 4... O-O {[%clk 0:02:56.9]} 5. h3 {[%clk 0:02:58.7]}
5... c5 {[%clk 0:02:55.1]} 6. Be2 {[%clk 0:02:58.2]} 6... cxd4 {[%clk
0:02:55.1]} 7. exd4 {[%clk 0:02:58]} 7... Qb6 {[%clk 0:02:54.1]} 8. Qc1 {[%clk
0:02:57.8]} 8... Nc6 {[%clk 0:02:52.4]} 9. c3 {[%clk 0:02:57.9]} 9... d6 {[%clk
0:02:52.2]} 10. O-O {[%clk 0:02:57.7]} 10... Bf5 {[%clk 0:02:49.1]} 11. Nbd2
{[%clk 0:02:57.5]} 11... Rac8 {[%clk 0:02:47.2]} 12. Nc4 {[%clk 0:02:53.8]}
12... Qd8 {[%clk 0:02:42.3]} 13. Ne3 {[%clk 0:02:49.7]} 13... Be6 {[%clk
0:02:35.4]} 14. Qd1 {[%clk 0:02:37.6]} 14... Nd5 {[%clk 0:02:28.6]} 15. Nxd5
{[%clk 0:02:35.9]} 15... Bxd5 {[%clk 0:02:29.5]} 16. Re1 {[%clk 0:02:23.7]}
16... Qb6 {[%clk 0:02:27.8]} 17. Qd2 {[%clk 0:02:19.8]} 17... Rfd8 {[%clk
0:02:03]} 18. Bg5 {[%clk 0:02:09.8]} 18... Re8 {[%clk 0:01:59.4]} 19. Nh2 {[%clk
0:02:03.1]} 19... h5 {[%clk 0:01:32.7]} 20. Bf3 {[%clk 0:01:44.9]} 20... Bxf3
{[%clk 0:01:17.4]} 21. Nxf3 {[%clk 0:01:44.5]} 21... Qa5 {[%clk 0:01:18.3]} 22.
d5 {[%clk 0:01:27.9]} 22... Ne5 {[%clk 0:01:16.2]} 23. Nxe5 {[%clk 0:01:27.9]}
23... dxe5 {[%clk 0:01:15.3]} 24. a3 {[%clk 0:01:14.4]} 24... Red8 {[%clk
0:01:11.2]} 25. Rad1 {[%clk 0:01:14.2]} 25... Bf6 {[%clk 0:01:09]} 26. Bxf6
{[%clk 0:01:08.6]} 26... exf6 {[%clk 0:01:08.7]} 27. Re3 {[%clk 0:01:01.9]}
27... Rd6 {[%clk 0:01:08]} 28. Rd3 {[%clk 0:00:58.9]} 28... b5 {[%clk
0:01:01.9]} 29. Qe3 {[%clk 0:00:50.7]} 29... Rc4 {[%clk 0:00:57.7]} 30. Qg3
{[%clk 0:00:43.9]} 30... h4 {[%clk 0:00:56.7]} 31. Qf3 {[%clk 0:00:42.4]} 31...
Qc7 {[%clk 0:00:55.8]} 32. Qe2 {[%clk 0:00:40.8]} 32... Kg7 {[%clk 0:00:55.6]}
33. R3d2 {[%clk 0:00:40.2]} 33... a5 {[%clk 0:00:54.8]} 34. Qf3 {[%clk 0:00:36]}
34... Qc5 {[%clk 0:00:53.8]} 35. Qe2 {[%clk 0:00:35.7]} 35... Rf4 {[%clk
0:00:51.6]} 36. Rd3 {[%clk 0:00:34]} 36... Qc4 {[%clk 0:00:44.1]} 37. Qe3 {[%clk
0:00:31.1]} 37... Qc7 {[%clk 0:00:37.9]} 38. Qe2 {[%clk 0:00:28.7]} 38... Qd7
{[%clk 0:00:31.8]} 39. Qe3 {[%clk 0:00:28.1]} 39... b4 {[%clk 0:00:31.7]} 40.
axb4 {[%clk 0:00:27.7]} 40... axb4 {[%clk 0:00:31.8]} 41. cxb4 {[%clk
0:00:24.6]} 41... Rxb4 {[%clk 0:00:31.1]} 42. R1d2 {[%clk 0:00:23.3]} 42... Qb5
{[%clk 0:00:30.6]} 43. Qe2 {[%clk 0:00:22.2]} 43... Rc4 {[%clk 0:00:29.1]} 44.
Rc3 {[%clk 0:00:20.5]} 44... Rb4 {[%clk 0:00:25.3]} 45. Qe3 {[%clk 0:00:14.2]}
45... Rxd5 {[%clk 0:00:21]} 46. Rxd5 {[%clk 0:00:12.7]} 46... Qxd5 {[%clk
0:00:21.9]} 47. Qe2 {[%clk 0:00:11.4]} 47... Qd4 {[%clk 0:00:20.1]} 48. Rc2
{[%clk 0:00:11.4]} 48... Qe4 {[%clk 0:00:16.1]} 49. Qd2 {[%clk 0:00:10.4]} 49...
Rd4 {[%clk 0:00:15.8]} 50. Qe2 {[%clk 0:00:09.6]} 50... Qxe2 {[%clk 0:00:15.4]}
51. Rxe2 {[%clk 0:00:09.9]} 51... Rd1+ {[%clk 0:00:16.2]} 52. Kh2 {[%clk
0:00:09.7]} 52... Rb1 {[%clk 0:00:15.5]} 53. Rc2 {[%clk 0:00:09.8]} 53... f5
{[%clk 0:00:15.5]} 54. g3 {[%clk 0:00:10.2]} 54... hxg3+ {[%clk 0:00:14.7]} 55.
Kxg3 {[%clk 0:00:10.6]} 55... e4 {[%clk 0:00:15.6]} 56. Kf4 {[%clk 0:00:10.7]}
56... Rh1 {[%clk 0:00:14.5]} 57. b4 {[%clk 0:00:10.9]} 57... Rxh3 {[%clk
0:00:13.9]} 58. Rb2 {[%clk 0:00:11.3]} 58... Kf6 {[%clk 0:00:11.5]} 59. b5
{[%clk 0:00:10.5]} 59... g5# {[%clk 0:00:11.4]} 0-1

[Event "Late-Titled-Tuesday-Blitz-May-14-2024"]
[Site "Chess.com"]
[Date "2024.05.14"]
[Round "1"]
[White "YouShallNotPass001"]
[Black "chenxiaoyuer"]
[Result "0-1"]
[WhiteElo "2495"]
[BlackElo "2884"]
[TimeControl "180+1"]
[EndTime "14:08:17 PDT"]
[Termination "chenxiaoyuer won on time"]

1. e4 {[%clk 0:03:00.9]} 1... c5 {[%clk 0:03:00]} 2. Nf3 {[%clk 0:03:00.7]} 2...
d6 {[%clk 0:03:00.4]} 3. c3 {[%clk 0:03:01]} 3... Nf6 {[%clk 0:03:00.7]} 4. h3
{[%clk 0:03:01.6]} 4... g6 {[%clk 0:02:59.6]} 5. Bd3 {[%clk 0:03:02]} 5... Bg7
{[%clk 0:03:00.2]} 6. O-O {[%clk 0:03:02.3]} 6... O-O {[%clk 0:03:01.1]} 7. Re1
{[%clk 0:03:02.5]} 7... Nc6 {[%clk 0:03:02]} 8. Bc4 {[%clk 0:03:00.9]} 8... Nxe4
{[%clk 0:02:56.4]} 9. Bxf7+ {[%clk 0:02:58]} 9... Rxf7 {[%clk 0:02:57.3]} 10.
Rxe4 {[%clk 0:02:57.9]} 10... d5 {[%clk 0:02:58.2]} 11. Re1 {[%clk 0:02:55.4]}
11... e5 {[%clk 0:02:58.8]} 12. d3 {[%clk 0:02:54.1]} 12... Qf6 {[%clk
0:02:55.1]} 13. c4 {[%clk 0:02:51.5]} 13... Bxh3 {[%clk 0:02:49.1]} 14. Nc3
{[%clk 0:02:49.7]} 14... Bg4 {[%clk 0:02:43.1]} 15. Nxd5 {[%clk 0:02:48.2]}
15... Qd6 {[%clk 0:02:42.8]} 16. Re4 {[%clk 0:02:42.8]} 16... Bxf3 {[%clk
0:02:42.1]} 17. gxf3 {[%clk 0:02:43.7]} 17... Nd4 {[%clk 0:02:41.7]} 18. f4
{[%clk 0:02:44.3]} 18... exf4 {[%clk 0:02:40.8]} 19. Bxf4 {[%clk 0:02:45.2]}
19... Qd7 {[%clk 0:02:41.3]} 20. Kg2 {[%clk 0:02:28.6]} 20... Raf8 {[%clk
0:02:38.4]} 21. Bg3 {[%clk 0:02:28.2]} 21... h5 {[%clk 0:02:36.8]} 22. Rb1
{[%clk 0:02:19.8]} 22... Nf5 {[%clk 0:02:20.1]} 23. f4 {[%clk 0:02:10.2]} 23...
Ne7 {[%clk 0:02:10.9]} 24. Nxe7+ {[%clk 0:01:57.5]} 24... Rxe7 {[%clk
0:02:11.8]} 25. Rxe7 {[%clk 0:01:57.6]} 25... Qxe7 {[%clk 0:02:12.7]} 26. Qf3
{[%clk 0:01:57.1]} 26... Qd7 {[%clk 0:02:10]} 27. b4 {[%clk 0:01:52.6]} 27...
cxb4 {[%clk 0:02:05.1]} 28. Rxb4 {[%clk 0:01:53.5]} 28... b6 {[%clk 0:02:05.7]}
29. Rb5 {[%clk 0:01:52]} 29... Re8 {[%clk 0:02:02.1]} 30. Bf2 {[%clk 0:01:42.7]}
30... Qf7 {[%clk 0:01:56]} 31. f5 {[%clk 0:01:32]} 31... g5 {[%clk 0:01:52.8]}
32. f6 {[%clk 0:01:26.1]} 32... Qxf6 {[%clk 0:01:49.6]} 33. Rf5 {[%clk
0:01:24.7]} 33... Qg6 {[%clk 0:01:47.5]} 34. Qd5+ {[%clk 0:01:24.7]} 34... Qe6
{[%clk 0:01:40.5]} 35. Qxe6+ {[%clk 0:01:14.3]} 35... Rxe6 {[%clk 0:01:41.4]}
36. Rxg5 {[%clk 0:01:14.7]} 36... Kf7 {[%clk 0:01:39.7]} 37. Rxh5 {[%clk
0:01:11.6]} 37... Re2 {[%clk 0:01:39]} 38. Kf3 {[%clk 0:01:11.4]} 38... Rxa2
{[%clk 0:01:38.8]} 39. Rd5 {[%clk 0:01:10.9]} 39... Ke6 {[%clk 0:01:38.5]} 40.
Bg3 {[%clk 0:01:10.2]} 40... Bf8 {[%clk 0:01:37.2]} 41. Bf2 {[%clk 0:01:05.4]}
41... Rc2 {[%clk 0:01:33.7]} 42. Be3 {[%clk 0:01:04.8]} 42... Bd6 {[%clk
0:01:32.8]} 43. Ke4 {[%clk 0:01:04.7]} 43... Bc7 {[%clk 0:01:31.2]} 44. Rh5
{[%clk 0:01:03.8]} 44... Re2 {[%clk 0:01:28.5]} 45. d4 {[%clk 0:01:02.8]} 45...
Kd7 {[%clk 0:01:25.5]} 46. Rh7+ {[%clk 0:01:01.7]} 46... Kc8 {[%clk 0:01:24.4]}
47. Rh3 {[%clk 0:01:01.3]} 47... a5 {[%clk 0:01:23.7]} 48. Kd5 {[%clk 0:01:01]}
48... Rg2 {[%clk 0:01:20.6]} 49. Kc6 {[%clk 0:00:41.4]} 49... Rg6+ {[%clk
0:01:20.4]} 50. Kb5 {[%clk 0:00:41.6]} 50... Kb7 {[%clk 0:01:15.5]} 51. Rh7
{[%clk 0:00:37.7]} 51... Rg2 {[%clk 0:01:10.7]} 52. c5 {[%clk 0:00:22.2]} 52...
Rb2+ {[%clk 0:01:09.9]} 53. Kc4 {[%clk 0:00:22.5]} 53... bxc5 {[%clk 0:01:06.7]}
54. dxc5 {[%clk 0:00:15.2]} 54... Kc6 {[%clk 0:00:59.2]} 55. Rh6+ {[%clk
0:00:14.9]} 55... Kd7 {[%clk 0:00:59.8]} 56. Kd5 {[%clk 0:00:14.8]} 56... Bd8
{[%clk 0:00:54.9]} 57. c6+ {[%clk 0:00:14]} 57... Kc8 {[%clk 0:00:54.4]} 58. Rh8
{[%clk 0:00:13.8]} 58... a4 {[%clk 0:00:52.6]} 59. Bf4 {[%clk 0:00:09.2]} 59...
Rb5+ {[%clk 0:00:47.1]} 60. Kc4 {[%clk 0:00:08.6]} 60... Rf5 {[%clk 0:00:47.7]}
61. Bd6 {[%clk 0:00:07.7]} 61... Rf6 {[%clk 0:00:47.9]} 62. Kd5 {[%clk
0:00:07.4]} 62... Rf5+ {[%clk 0:00:39.5]} 63. Ke6 {[%clk 0:00:07.2]} 63... Rf6+
{[%clk 0:00:39.6]} 64. Ke5 {[%clk 0:00:07.2]} 64... Rf7 {[%clk 0:00:29.1]} 65.
Ke6 {[%clk 0:00:03.6]} 65... Rg7 {[%clk 0:00:25.2]} 66. c7 {[%clk 0:00:02.2]}
66... Rd7 {[%clk 0:00:21.1]} 67. cxd8=Q+ {[%clk 0:00:00.8]} 67... Rxd8 {[%clk
0:00:21.4]} 68. Rh4 {[%clk 0:00:01.3]} 68... Re8+ {[%clk 0:00:21.6]} 0-1

[Event "Late-Titled-Tuesday-Blitz-May-14-2024"]
[Site "Chess.com"]
[Date "2024.05.14"]
[Round "1"]
[White "rionelG"]
[Black "Romkachess"]
[Result "1-0"]
[WhiteElo "2309"]
[BlackElo "2597"]
[TimeControl "180+1"]
[EndTime "14:08:19 PDT"]
[Termination "rionelG won by resignation"]

1. e4 {[%clk 0:02:47.2]} 1... c5 {[%clk 0:02:54.8]} 2. g3 {[%clk 0:02:47.3]}
2... g6 {[%clk 0:02:52.9]} 3. Bg2 {[%clk 0:02:46.8]} 3... Bg7 {[%clk 0:02:51.3]}
4. Ne2 {[%clk 0:02:47.4]} 4... Nc6 {[%clk 0:02:51.2]} 5. c3 {[%clk 0:02:48]}
5... d6 {[%clk 0:02:50.4]} 6. d3 {[%clk 0:02:48.3]} 6... e6 {[%clk 0:02:49.7]}
7. Be3 {[%clk 0:02:48]} 7... Nge7 {[%clk 0:02:50.6]} 8. O-O {[%clk 0:02:47.8]}
8... Kf8 {[%clk 0:02:50]} 9. d4 {[%clk 0:02:47.5]} 9... cxd4 {[%clk 0:02:49.6]}
10. cxd4 {[%clk 0:02:48.4]} 10... d5 {[%clk 0:02:50.5]} 11. exd5 {[%clk
0:02:41.8]} 11... Nxd5 {[%clk 0:02:51.4]} 12. Nbc3 {[%clk 0:02:41.9]} 12... h5
{[%clk 0:02:47.6]} 13. Nxd5 {[%clk 0:02:34.3]} 13... exd5 {[%clk 0:02:47.2]} 14.
Nf4 {[%clk 0:02:34.3]} 14... Be6 {[%clk 0:02:28]} 15. Qf3 {[%clk 0:02:26.7]}
15... Kg8 {[%clk 0:02:14.3]} 16. Nxe6 {[%clk 0:02:16.7]} 16... fxe6 {[%clk
0:02:10.3]} 17. Rad1 {[%clk 0:02:15.4]} 17... Qf6 {[%clk 0:02:09.8]} 18. Qe2
{[%clk 0:02:12.4]} 18... Kh7 {[%clk 0:02:07.8]} 19. Rfe1 {[%clk 0:01:47.7]}
19... Rhf8 {[%clk 0:02:06]} 20. Qb5 {[%clk 0:01:43.7]} 20... Rf7 {[%clk
0:01:57.8]} 21. h4 {[%clk 0:01:42.8]} 21... a6 {[%clk 0:01:55.8]} 22. Qe2 {[%clk
0:01:40.7]} 22... Raf8 {[%clk 0:01:45.5]} 23. Rf1 {[%clk 0:01:37.1]} 23... Bh6
{[%clk 0:01:35.2]} 24. Bxh6 {[%clk 0:01:30.6]} 24... Kxh6 {[%clk 0:01:36.1]} 25.
b3 {[%clk 0:01:29.1]} 25... Kg7 {[%clk 0:01:26.6]} 26. Qe3 {[%clk 0:01:27.9]}
26... Re7 {[%clk 0:01:20.6]} 27. Rfe1 {[%clk 0:01:25.8]} 27... Ref7 {[%clk
0:01:18.5]} 28. Rd2 {[%clk 0:01:25.1]} 28... Re7 {[%clk 0:01:12.8]} 29. Qg5
{[%clk 0:01:13.5]} 29... Qxg5 {[%clk 0:01:03.6]} 30. hxg5 {[%clk 0:01:13.3]}
30... h4 {[%clk 0:00:54.3]} 31. Re3 {[%clk 0:00:43]} 31... hxg3 {[%clk
0:00:52.2]} 32. Rxg3 {[%clk 0:00:43]} 32... Rf4 {[%clk 0:00:51.3]} 33. Re3
{[%clk 0:00:42.7]} 33... Kf7 {[%clk 0:00:39.4]} 34. Rf3 {[%clk 0:00:41.3]} 34...
Rxf3 {[%clk 0:00:33.3]} 35. Bxf3 {[%clk 0:00:42.2]} 35... Re8 {[%clk 0:00:21.8]}
36. Kg2 {[%clk 0:00:41.2]} 36... Ke7 {[%clk 0:00:21.9]} 37. Bd1 {[%clk
0:00:29.8]} 37... Rf8 {[%clk 0:00:22.2]} 38. Bc2 {[%clk 0:00:27.7]} 38... Rf4
{[%clk 0:00:22.5]} 39. Kg3 {[%clk 0:00:24.5]} 39... Rxd4 {[%clk 0:00:19.4]} 40.
Rxd4 {[%clk 0:00:24.1]} 40... Nxd4 {[%clk 0:00:20.3]} 41. Bxg6 {[%clk
0:00:24.7]} 41... Ne2+ {[%clk 0:00:17.3]} 42. Kg4 {[%clk 0:00:22.1]} 42... Nc3
{[%clk 0:00:18.2]} 43. a4 {[%clk 0:00:19.1]} 43... Nd1 {[%clk 0:00:09.9]} 44. f4
{[%clk 0:00:17.9]} 44... Nc3 {[%clk 0:00:04.8]} 45. Bd3 {[%clk 0:00:14.7]} 45...
b5 {[%clk 0:00:05.1]} 46. axb5 {[%clk 0:00:13.6]} 46... axb5 {[%clk 0:00:06]}
47. Kh5 {[%clk 0:00:13.5]} 47... Kf7 {[%clk 0:00:05.8]} 48. Kh6 {[%clk
0:00:12.9]} 48... Kg8 {[%clk 0:00:06.2]} 49. Kg6 {[%clk 0:00:10.7]} 49... b4
{[%clk 0:00:06.5]} 50. Kf6 {[%clk 0:00:10.5]} 50... Nb5 {[%clk 0:00:03.2]} 51.
Kxe6 {[%clk 0:00:08.4]} 51... Nd4+ {[%clk 0:00:03.3]} 52. Kxd5 {[%clk 0:00:09]}
52... Nxb3 {[%clk 0:00:04.2]} 53. f5 {[%clk 0:00:06]} 53... Nc1 {[%clk 0:00:04]}
54. Bc4 {[%clk 0:00:06.1]} 54... b3 {[%clk 0:00:03.9]} 55. Kd4+ {[%clk
0:00:04.8]} 55... Kf8 {[%clk 0:00:04.4]} 56. Kc3 {[%clk 0:00:05.3]} 56... Ne2+
{[%clk 0:00:02.4]} 57. Bxe2 {[%clk 0:00:05]} 57... b2 {[%clk 0:00:02.4]} 58.
Kxb2 {[%clk 0:00:05.3]} 1-0

[Event "Late-Titled-Tuesday-Blitz-May-14-2024"]
[Site "Chess.com"]
[Date "2024.05.14"]
[Round "1"]
[White "PepeCuenca"]
[Black "FuenfgegenWilly"]
[Result "1-0"]
[WhiteElo "2817"]
[BlackElo "2455"]
[TimeControl "180+1"]
[EndTime "14:08:20 PDT"]
[Termination "PepeCuenca won on time"]

1. d4 {[%clk 0:03:00.9]} 1... d5 {[%clk 0:02:59.2]} 2. Bf4 {[%clk 0:03:00]} 2...
Nc6 {[%clk 0:02:49.6]} 3. e3 {[%clk 0:02:57.5]} 3... f6 {[%clk 0:02:49.3]} 4.
Bb5 {[%clk 0:02:39.4]} 4... a6 {[%clk 0:02:44.5]} 5. Ba4 {[%clk 0:02:24.4]} 5...
b5 {[%clk 0:02:41.3]} 6. Bb3 {[%clk 0:02:24.4]} 6... e5 {[%clk 0:02:34.9]} 7.
Bg3 {[%clk 0:02:24.4]} 7... Be6 {[%clk 0:02:30.3]} 8. a4 {[%clk 0:02:18.6]} 8...
b4 {[%clk 0:02:28.2]} 9. a5 {[%clk 0:02:16.8]} 9... Nh6 {[%clk 0:02:24.2]} 10.
Ba4 {[%clk 0:02:08.2]} 10... Qd6 {[%clk 0:02:12.1]} 11. Nf3 {[%clk 0:02:05.8]}
11... O-O-O {[%clk 0:01:39.2]} 12. h3 {[%clk 0:01:33.3]} 12... Nf5 {[%clk
0:01:35.7]} 13. Bh2 {[%clk 0:01:33.4]} 13... g5 {[%clk 0:01:04.6]} 14. Nbd2
{[%clk 0:01:17.4]} 14... Bg7 {[%clk 0:01:01.6]} 15. Nb3 {[%clk 0:01:16.1]} 15...
h5 {[%clk 0:00:51.4]} 16. Nc5 {[%clk 0:01:11.1]} 16... g4 {[%clk 0:00:49.3]} 17.
Qe2 {[%clk 0:00:52]} 17... Nb8 {[%clk 0:00:36.9]} 18. Nd2 {[%clk 0:00:30.9]}
18... gxh3 {[%clk 0:00:08]} 19. gxh3 {[%clk 0:00:30.3]} 19... h4 {[%clk
0:00:07.3]} 20. O-O-O {[%clk 0:00:27.4]} 20... c6 {[%clk 0:00:04.3]} 21. Nxa6
{[%clk 0:00:24.4]} 21... Nxa6 {[%clk 0:00:03.4]} 22. Qxa6+ {[%clk 0:00:25.3]}
22... Kd7 {[%clk 0:00:03.7]} 23. Qa7+ {[%clk 0:00:24.1]} 23... Qc7 {[%clk
0:00:03.9]} 24. Qxc7+ {[%clk 0:00:21.1]} 24... Kxc7 {[%clk 0:00:04.8]} 25. Nb3
{[%clk 0:00:20.5]} 25... Ra8 {[%clk 0:00:03.9]} 26. Nc5 {[%clk 0:00:20.3]} 26...
Bc8 {[%clk 0:00:04.1]} 27. a6 {[%clk 0:00:20.4]} 27... Bxa6 {[%clk 0:00:03.4]}
28. Rhg1 {[%clk 0:00:17.3]} 28... Rhg8 {[%clk 0:00:02.7]} 29. Kb1 {[%clk
0:00:14.9]} 29... Kd6 {[%clk 0:00:02.4]} 30. Rg2 {[%clk 0:00:12.9]} 30... Bc4
{[%clk 0:00:01.5]} 31. b3 {[%clk 0:00:12.2]} 31... Bb5 {[%clk 0:00:01.6]} 32.
Rdg1 {[%clk 0:00:12.1]} 32... Bxa4 {[%clk 0:00:01.6]} 33. Nxa4 {[%clk
0:00:09.9]} 33... Ra7 {[%clk 0:00:02]} 34. Rg6 {[%clk 0:00:07.3]} 34... Ke6
{[%clk 0:00:02.2]} 35. Kb2 {[%clk 0:00:06.7]} 35... Kf7 {[%clk 0:00:02.5]} 36.
Nc5 {[%clk 0:00:06.3]} 36... Raa8 {[%clk 0:00:01.8]} 37. Na4 {[%clk 0:00:06.4]}
37... Bh8 {[%clk 0:00:02]} 38. Rxg8 {[%clk 0:00:06.3]} 38... Rxg8 {[%clk
0:00:02.9]} 39. Rxg8 {[%clk 0:00:06.5]} 39... Kxg8 {[%clk 0:00:03.8]} 40. dxe5
{[%clk 0:00:06.9]} 40... fxe5 {[%clk 0:00:04.1]} 41. Nc5 {[%clk 0:00:07.8]}
41... e4+ {[%clk 0:00:03.7]} 42. Kc1 {[%clk 0:00:08.3]} 42... Bf6 {[%clk
0:00:03.2]} 43. Na6 {[%clk 0:00:08.3]} 43... Be7 {[%clk 0:00:03.2]} 44. Be5
{[%clk 0:00:06.8]} 44... Kf7 {[%clk 0:00:03.5]} 45. Kd2 {[%clk 0:00:05.8]} 45...
Ke6 {[%clk 0:00:03.7]} 46. Bf4 {[%clk 0:00:05.8]} 46... c5 {[%clk 0:00:04.2]}
47. Ke2 {[%clk 0:00:05]} 47... d4 {[%clk 0:00:04.3]} 48. Nc7+ {[%clk 0:00:04.5]}
48... Kd7 {[%clk 0:00:04.2]} 49. Nd5 {[%clk 0:00:04.4]} 49... Bf8 {[%clk
0:00:04.3]} 50. Nf6+ {[%clk 0:00:04.5]} 50... Ke6 {[%clk 0:00:04.5]} 51. Nxe4
{[%clk 0:00:05.3]} 51... Kd5 {[%clk 0:00:04.7]} 52. Nf6+ {[%clk 0:00:05]} 52...
Ke6 {[%clk 0:00:05.1]} 53. Ng4 {[%clk 0:00:05]} 53... dxe3 {[%clk 0:00:04.8]}
54. fxe3 {[%clk 0:00:05.9]} 54... Bg7 {[%clk 0:00:05]} 55. Kd3 {[%clk
0:00:05.7]} 55... Kd5 {[%clk 0:00:04.3]} 56. e4+ {[%clk 0:00:06]} 56... Ke6
{[%clk 0:00:03.8]} 57. exf5+ {[%clk 0:00:06.9]} 57... Kxf5 {[%clk 0:00:04.7]}
58. Be3 {[%clk 0:00:07.3]} 58... Bf8 {[%clk 0:00:04.7]} 59. Nf2 {[%clk
0:00:06.9]} 59... Bd6 {[%clk 0:00:04.4]} 60. Ne4 {[%clk 0:00:07.1]} 60... Be5
{[%clk 0:00:04.5]} 61. Bxc5 {[%clk 0:00:06.6]} 1-0

[Event "Late-Titled-Tuesday-Blitz-May-14-2024"]
[Site "Chess.com"]
[Date "2024.05.14"]
[Round "1"]
[White "biostatistician"]
[Black "Iuckyducky"]
[Result "1-0"]
[WhiteElo "2612"]
[BlackElo "2287"]
[TimeControl "180+1"]
[EndTime "14:08:23 PDT"]
[Termination "biostatistician won by checkmate"]

1. d4 {[%clk 0:02:50]} 1... Nf6 {[%clk 0:02:52.5]} 2. Nf3 {[%clk 0:02:47.2]}
2... d5 {[%clk 0:02:49.7]} 3. c4 {[%clk 0:02:47]} 3... c6 {[%clk 0:02:50]} 4.
cxd5 {[%clk 0:02:46.6]} 4... cxd5 {[%clk 0:02:49.8]} 5. Nc3 {[%clk 0:02:47.5]}
5... Nc6 {[%clk 0:02:50.1]} 6. Bf4 {[%clk 0:02:46.6]} 6... Bf5 {[%clk
0:02:47.8]} 7. e3 {[%clk 0:02:46.6]} 7... e6 {[%clk 0:02:47.7]} 8. Qb3 {[%clk
0:02:45.3]} 8... Qd7 {[%clk 0:02:29.4]} 9. Bb5 {[%clk 0:02:42.5]} 9... Bd6
{[%clk 0:02:28.4]} 10. Bxd6 {[%clk 0:02:11.9]} 10... Qxd6 {[%clk 0:02:27.8]} 11.
O-O {[%clk 0:02:08.5]} 11... O-O {[%clk 0:02:26.1]} 12. Rac1 {[%clk 0:02:06.8]}
12... Rac8 {[%clk 0:02:03.7]} 13. Bxc6 {[%clk 0:01:57.7]} 13... Rxc6 {[%clk
0:01:32.4]} 14. Nb5 {[%clk 0:01:43.7]} 14... Qb8 {[%clk 0:01:32.2]} 15. Ne5
{[%clk 0:01:43.4]} 15... Rxc1 {[%clk 0:01:08.8]} 16. Rxc1 {[%clk 0:01:44.3]}
16... a6 {[%clk 0:01:09.1]} 17. Nc3 {[%clk 0:01:30]} 17... Rc8 {[%clk
0:01:07.3]} 18. Ne2 {[%clk 0:01:24.3]} 18... Rxc1+ {[%clk 0:00:44.9]} 19. Nxc1
{[%clk 0:01:25.2]} 19... Qc7 {[%clk 0:00:43.1]} 20. Qc3 {[%clk 0:01:24.6]} 20...
Qxc3 {[%clk 0:00:43.5]} 21. bxc3 {[%clk 0:01:25.5]} 21... Ne4 {[%clk 0:00:43.4]}
22. c4 {[%clk 0:01:24.7]} 22... f6 {[%clk 0:00:28.4]} 23. Nd7 {[%clk 0:01:24.3]}
23... dxc4 {[%clk 0:00:24.9]} 24. f3 {[%clk 0:01:23.1]} 24... Nd6 {[%clk
0:00:11.6]} 25. e4 {[%clk 0:01:22.6]} 25... Bg6 {[%clk 0:00:12.2]} 26. Kf2
{[%clk 0:01:07.8]} 26... Kf7 {[%clk 0:00:11.8]} 27. Ke3 {[%clk 0:01:01.7]} 27...
Ke7 {[%clk 0:00:12.2]} 28. Nc5 {[%clk 0:01:02.1]} 28... Be8 {[%clk 0:00:09.6]}
29. Kd2 {[%clk 0:00:58.1]} 29... Bb5 {[%clk 0:00:09.9]} 30. e5 {[%clk
0:00:54.1]} 30... fxe5 {[%clk 0:00:01.9]} 31. dxe5 {[%clk 0:00:54]} 31... Nf7
{[%clk 0:00:02.6]} 32. f4 {[%clk 0:00:53.8]} 32... Bc6 {[%clk 0:00:02]} 33. g3
{[%clk 0:00:53.4]} 33... Nd8 {[%clk 0:00:01.8]} 34. Kc3 {[%clk 0:00:49]} 34...
Bd5 {[%clk 0:00:01.8]} 35. a4 {[%clk 0:00:41.7]} 35... a5 {[%clk 0:00:02.4]} 36.
Ne2 {[%clk 0:00:30.6]} 36... b6 {[%clk 0:00:03]} 37. Na6 {[%clk 0:00:30.8]}
37... Bb7 {[%clk 0:00:02.5]} 38. Nc7 {[%clk 0:00:29.2]} 38... Kd7 {[%clk
0:00:02.3]} 39. Nb5 {[%clk 0:00:28.2]} 39... Bd5 {[%clk 0:00:02.4]} 40. Na3
{[%clk 0:00:24.5]} 40... Bc6 {[%clk 0:00:01.8]} 41. Nb5 {[%clk 0:00:23.4]} 41...
Bd5 {[%clk 0:00:01.5]} 42. Ned4 {[%clk 0:00:21.5]} 42... Nb7 {[%clk 0:00:00.7]}
43. Kb2 {[%clk 0:00:13.3]} 43... Nc5 {[%clk 0:00:01.6]} 44. Ka3 {[%clk
0:00:12.9]} 44... Ne4 {[%clk 0:00:02.3]} 45. Ne2 {[%clk 0:00:10.5]} 45... Nf2
{[%clk 0:00:02.8]} 46. Nd6 {[%clk 0:00:09.5]} 46... Ng4 {[%clk 0:00:03.3]} 47.
h4 {[%clk 0:00:09.3]} 47... Ne3 {[%clk 0:00:04]} 48. Kb2 {[%clk 0:00:06.9]}
48... Nd1+ {[%clk 0:00:04.4]} 49. Kc2 {[%clk 0:00:06.6]} 49... Nf2 {[%clk
0:00:05]} 50. Kc3 {[%clk 0:00:06.7]} 50... Ne4+ {[%clk 0:00:05.6]} 51. Nxe4
{[%clk 0:00:06.9]} 51... Bxe4 {[%clk 0:00:06.5]} 52. Kxc4 {[%clk 0:00:07.1]}
52... Bf3 {[%clk 0:00:06.9]} 53. Nc3 {[%clk 0:00:06.6]} 53... Kc6 {[%clk
0:00:07.5]} 54. Kd4 {[%clk 0:00:06.2]} 54... Bg4 {[%clk 0:00:07.8]} 55. Ke3
{[%clk 0:00:05.7]} 55... Bf5 {[%clk 0:00:08.1]} 56. Kf3 {[%clk 0:00:05.8]} 56...
Bc2 {[%clk 0:00:08.5]} 57. g4 {[%clk 0:00:05.8]} 57... Kc5 {[%clk 0:00:09]} 58.
Ke3 {[%clk 0:00:05]} 58... Kb4 {[%clk 0:00:09.1]} 59. Kd2 {[%clk 0:00:05.9]}
59... Bxa4 {[%clk 0:00:09.4]} 60. Nxa4 {[%clk 0:00:04.7]} 60... Kxa4 {[%clk
0:00:09.9]} 61. f5 {[%clk 0:00:05.6]} 61... Kb3 {[%clk 0:00:08]} 62. fxe6 {[%clk
0:00:05.6]} 62... a4 {[%clk 0:00:08.7]} 63. e7 {[%clk 0:00:06.5]} 63... a3
{[%clk 0:00:09.4]} 64. e8=Q {[%clk 0:00:07.4]} 64... a2 {[%clk 0:00:10]} 65.
Qb5+ {[%clk 0:00:07.9]} 65... Ka3 {[%clk 0:00:09.8]} 66. Kc2 {[%clk 0:00:06]}
66... a1=Q {[%clk 0:00:09.9]} 67. Qb3# {[%clk 0:00:06]} 1-0